fUST/lending_fUST_20250730
["ID","MTS","AMOUNT","RATE_DAILY","PERIOD"]
[376021891,1753825842921,-500.0,0.00019184,2]
[376021892,1753825842931,-278.09292474,0.00019184,2]
[376021893,1753825842941,-151.0,0.00019184,2]
[376021894,1753825842951,-151.0,0.00019184,2]
[376021895,1753825842962,-240.75222387,0.00019184,2]
[376021896,1753825842972,-460.0,0.00019184,2]
[376021897,1753825842982,-164.26348748,0.00019184,2]
[376021898,1753825842991,-460.0,0.00019184,2]
[376021899,1753825843000,-460.0,0.00019184,2]
[376021900,1753825843010,-460.0,0.00019184,2]
[376021901,1753825843020,-460.0,0.00019184,2]
[376021902,1753825843030,-460.0,0.00019184,2]
[376021903,1753825843039,-460.0,0.00019184,2]
[376021904,1753825843050,-460.0,0.00019184,2]
[376021905,1753825843059,-460.0,0.00019184,2]
[376021906,1753825843068,-460.0,0.00019184,2]
[376021907,1753825843078,-460.0,0.00019184,2]
[376021908,1753825843088,-460.0,0.00019184,2]
[376021909,1753825843098,-4419.34,0.00019184,2]
[376021910,1753825843107,-460.0,0.00019184,2]
[376021911,1753825843117,-460.0,0.00019184,2]
[376021912,1753825843126,-460.0,0.00019184,2]
[376021913,1753825843136,-460.0,0.00019184,2]
[376021914,1753825843145,-460.0,0.00019184,2]
[376021915,1753825843155,-460.0,0.00019184,2]
[376021917,1753825843164,-477.47,0.00019184,2]
[376021919,1753825843174,-252.98556827,0.00019184,2]
[376021921,1753825843183,-796.57,0.00019184,2]
[376021923,1753825843194,-460.0,0.00019184,2]
[376021925,1753825843204,-460.0,0.00019184,2]
[376021927,1753825843214,-460.0,0.00019184,2]
[376021930,1753825843226,-460.0,0.00019184,2]
[376021931,1753825843235,-460.0,0.00019184,2]
[376021933,1753825843246,-460.0,0.00019184,2]
[376021935,1753825843255,-460.0,0.00019184,2]
[376021937,1753825843264,-460.0,0.00019184,2]
[376021938,1753825843274,-460.0,0.00019184,2]
[376021939,1753825843283,-637.15,0.00019184,2]
[376021941,1753825843292,-460.0,0.00019184,2]
[376021943,1753825843301,-460.0,0.00019184,2]
[376021945,1753825843311,-460.0,0.00019184,2]
[376021947,1753825843319,-578.21,0.00019184,2]
[376021948,1753825843328,-460.0,0.00019184,2]
[376021949,1753825843337,-460.0,0.00019184,2]
[376021950,1753825843346,-460.0,0.00019184,2]
[376021951,1753825843355,-1636.02,0.00019184,2]
[376021952,1753825843364,-460.0,0.00019184,2]
[376021953,1753825843373,-460.0,0.00019184,2]
[376021954,1753825843382,-486.55,0.00019184,2]
[376021955,1753825843391,-460.0,0.00019184,2]
[376021956,1753825843400,-460.0,0.00019184,2]
[376021957,1753825843409,-460.0,0.00019184,2]
[376021958,1753825843418,-460.0,0.00019184,2]
[376021959,1753825843427,-460.0,0.00019184,2]
[376021960,1753825843436,-460.0,0.00019184,2]
[376021961,1753825843445,-460.0,0.00019184,2]
[376021962,1753825843454,-460.0,0.00019184,2]
[376021963,1753825843463,-460.0,0.00019184,2]
[376021964,1753825843473,-189.76662497,0.00019185,2]
[376021965,1753825843482,-173.26903104,0.00019185,2]
[376021966,1753825843492,-202.62508502,0.00019185,2]
[376021967,1753825843502,-152.24199506,0.00019185,2]
[376021968,1753825843511,-500.0,0.00019185,2]
[376021969,1753825843521,-151.44368403,0.00019185,2]
[376021970,1753825843531,-920.0,0.00019185,2]
[376021971,1753825843541,-151.0,0.00019185,2]
[376021972,1753825843551,-151.0,0.00019185,2]
[376021973,1753825843560,-151.0,0.00019185,2]
[376021974,1753825843570,-203.33684236,0.00019185,2]
[376021975,1753825843580,-151.0,0.00019185,2]
[376021976,1753825843589,-153.00336058,0.00019185,2]
[376021977,1753825843598,-500.0,0.00019185,2]
[376021978,1753825843608,-217.96856353,0.00019185,2]
[376021979,1753825843617,-460.0,0.00019185,2]
[376021980,1753825843626,-460.0,0.00019185,2]
[376021981,1753825843635,-460.0,0.00019185,2]
[376021982,1753825843645,-460.0,0.00019185,2]
[376021983,1753825843654,-593.44166536,0.00019185,2]
[376021984,1753825843663,-460.0,0.00019185,2]
[376021985,1753825843672,-460.0,0.00019185,2]
[376021986,1753825843682,-460.0,0.00019185,2]
[376021987,1753825843691,-398.63614994,0.00019185,2]
[376021988,1753825843700,-460.0,0.00019185,2]
[376021989,1753825843709,-460.0,0.00019185,2]
[376021990,1753825843720,-460.0,0.00019185,2]
[376021991,1753825843729,-460.0,0.00019185,2]
[376021992,1753825843739,-460.0,0.00019185,2]
[376021993,1753825843748,-151.408613,0.00019185,2]
[376021994,1753825843758,-151.0,0.00019185,2]
[376021995,1753825843768,-151.0,0.00019185,2]
[376021996,1753825843779,-151.0,0.00019185,2]
[376021997,1753825843788,-460.0,0.00019185,2]
[376021998,1753825843798,-460.0,0.00019185,2]
[376021999,1753825843807,-471.7388339,0.00019185,2]
[376022000,1753825843818,-460.0,0.00019185,2]
[376022001,1753825843827,-151.0,0.00019185,2]
[376022002,1753825843836,-460.0,0.00019185,2]
[376022003,1753825843846,-560.51,0.00019185,2]
[376022004,1753825843855,-460.0,0.00019185,2]
[376022005,1753825843865,-460.0,0.00019185,2]
[376022006,1753825843873,-460.0,0.00019185,2]
[376022007,1753825843883,-460.0,0.00019185,2]
[376022008,1753825843892,-460.0,0.00019185,2]
[376022009,1753825843902,-534.99,0.00019185,2]
[376022010,1753825843911,-460.0,0.00019185,2]
[376022011,1753825843920,-460.0,0.00019185,2]
[376022012,1753825843929,-151.0,0.00019185,2]
[376022013,1753825843938,-460.0,0.00019185,2]
[376022014,1753825843947,-460.0,0.00019185,2]
[376022015,1753825843957,-460.0,0.00019185,2]
[376022016,1753825843966,-460.0,0.00019185,2]
[376022017,1753825843975,-151.0,0.00019185,2]
[376022018,1753825843984,-343.63826,0.00019185,2]
[376022019,1753825843993,-151.0,0.00019185,2]
[376022020,1753825844003,-343.63826,0.00019185,2]
[376022021,1753825844013,-169.756681,0.00019185,2]
[376022022,1753825844023,-169.756681,0.00019185,2]
[376022023,1753825844032,-151.0,0.00019185,2]
[376022024,1753825844041,-460.0,0.00019185,2]
[376022025,1753825844051,-460.0,0.00019185,2]
[376022026,1753825844060,-1691.88,0.00019185,2]
[376022027,1753825844070,-151.0,0.00019185,2]
[376022028,1753825844079,-460.0,0.00019185,2]
[376022029,1753825844089,-684.41,0.00019185,2]
[376022030,1753825844099,-1178.35,0.00019185,2]
[376022031,1753825844110,-460.0,0.00019185,2]
[376022032,1753825844243,-460.0,0.00019185,2]
[376022033,1753825844253,-460.0,0.00019185,2]
[376022034,1753825844263,-460.0,0.00019185,2]
[376022035,1753825844273,-460.0,0.00019185,2]
[376022036,1753825844283,-151.0,0.00019185,2]
[376022037,1753825844292,-563.13,0.00019185,2]
[376022038,1753825844302,-460.0,0.00019185,2]
[376022039,1753825844312,-460.0,0.00019185,2]
[376022040,1753825844321,-460.0,0.00019185,2]
[376022041,1753825844331,-460.0,0.00019185,2]
[376022042,1753825844341,-460.0,0.00019185,2]
[376022043,1753825844350,-460.0,0.00019185,2]
[376022044,1753825844359,-460.0,0.00019185,2]
[376022045,1753825844369,-808.78,0.00019185,2]
[376022046,1753825844378,-544.54794035,0.00019186,2]
[376022047,1753825844387,-1224.66,0.00019186,2]
[376022048,1753825844397,-460.0,0.00019186,2]
[376022049,1753825844406,-460.0,0.00019186,2]
[376022050,1753825844416,-460.0,0.00019186,2]
[376022051,1753825844425,-460.0,0.00019186,2]
[376022052,1753825844435,-155.053137,0.00019186,2]
[376022053,1753825844444,-152.710179,0.00019186,2]
[376022054,1753825844454,-515.51580303,0.00019186,2]
[376022055,1753825844464,-443.14749529,0.00019186,2]
[376022056,1753825844474,-460.0,0.00019186,2]
[376022057,1753825844484,-460.0,0.00019186,2]
[376022058,1753825844494,-151.0,0.00019186,2]
[376022059,1753825844503,-200.0,0.00019186,15]
[376022060,1753825844513,-200.0,0.00019186,15]
[376022061,1753825844522,-200.0,0.00019186,15]
[376022062,1753825844532,-200.0,0.00019186,15]
[376022063,1753825844541,-151.0,0.00019186,2]
[376022064,1753825844551,-151.0,0.00019186,2]
[376022065,1753825844560,-460.0,0.00019186,2]
[376022066,1753825844570,-250.432542,0.00019186,2]
[376022067,1753825844579,-4927.21,0.00019186,2]
[376022068,1753825844589,-151.0,0.00019186,2]
[376022069,1753825844598,-1238.68,0.00019186,2]
[376022070,1753825844608,-151.0,0.00019187,2]
[376022071,1753825844617,-218.15132,0.00019187,2]
[376022072,1753825844627,-151.0,0.00019187,2]
[376022073,1753825844636,-169.756681,0.00019187,2]
[376022074,1753825844645,-169.756681,0.00019187,2]
[376022075,1753825844655,-460.0,0.00019187,2]
[376022076,1753825844664,-460.0,0.00019187,2]
[376022077,1753825844673,-1755.58,0.00019187,2]
[376022078,1753825844682,-460.0,0.00019187,2]
[376022079,1753825844691,-460.0,0.00019187,2]
[376022080,1753825844701,-463.48559837,0.00019187,2]
[376022081,1753825844710,-1139.3,0.00019187,2]
[376022082,1753825844720,-460.0,0.00019187,2]
[376022083,1753825844730,-1158.23,0.00019187,2]
[376022084,1753825844739,-343.63826,0.00019246,2]
[376022085,1753825844748,-343.63826,0.00019246,2]
[376022086,1753825844758,-231.39372452,0.0001925,2]
[376022087,1753825844769,-526.67226028,0.0001925,2]
[376022088,1753825844781,-214.91980558,0.0001925,2]
[376022089,1753825844790,-216.1031716,0.0001925,2]
[376022090,1753825844799,-12637.12721421,0.0001925,2]
[376022091,1753825844808,-841.06558547,0.0001925,2]
[376022092,1753825844819,-160.0,0.0001925,2]
[376022093,1753825844828,-160.0,0.0001925,2]
[376022094,1753825844837,-160.0,0.0001925,2]
[376022095,1753825844847,-151.0,0.00019284,2]
[376022096,1753825844857,-151.0,0.00019361,2]
[376022097,1753825844866,-151.0,0.00019361,2]
[376022098,1753825844876,-252.301293,0.00019361,2]
[376022099,1753825844885,-1140.05085429,0.00019368,2]
[376022100,1753825844894,-460.0,0.00019439,2]
[376022101,1753825844904,-462.00365027,0.00019439,2]
[376022102,1753825844914,-460.0,0.00019439,2]
[376022103,1753825844924,-151.0,0.00019439,2]
[376022104,1753825844933,-169.756681,0.00019439,2]
[376022105,1753825844947,-169.756681,0.00019439,2]
[376022106,1753825844957,-10739.27274665,0.0001944,2]
[376022107,1753825844968,-151.0,0.0001944,2]
[376022108,1753825844978,-343.63826,0.00019447,2]
[376022109,1753825844988,-343.63826,0.00019447,2]
[376022110,1753825844999,-460.0,0.00019447,2]
[376022111,1753825845008,-460.0,0.00019447,2]
[376022112,1753825845018,-460.0,0.00019447,2]
[376022113,1753825845028,-460.0,0.00019447,2]
[376022114,1753825845038,-1633.55,0.00019447,2]
[376022115,1753825845048,-25000.0,0.00019448,2]
[376022116,1753825845058,-231.05746139,0.00019452,2]
[376022117,1753825845069,-2492.59,0.00019456,2]
[376022118,1753825845079,-460.0,0.00019456,2]
[376022119,1753825845090,-598.06330181,0.00019456,2]
[376022120,1753825845099,-2035.69,0.00019456,2]
[376022121,1753825845109,-499.32,0.00019456,2]
[376022122,1753825845119,-460.0,0.00019456,2]
[376022123,1753825845129,-1213.51,0.00019456,2]
[376022124,1753825845139,-460.0,0.00019456,2]
[376022125,1753825845148,-460.0,0.00019456,2]
[376022126,1753825845158,-460.0,0.00019456,2]
[376022127,1753825845168,-460.0,0.00019456,2]
[376022128,1753825845178,-460.0,0.00019456,2]
[376022129,1753825845187,-624.94,0.00019456,2]
[376022130,1753825845197,-460.0,0.00019456,2]
[376022131,1753825845206,-460.0,0.00019457,2]
[376022132,1753825845216,-372.81210753,0.00019457,2]
[376022133,1753825845225,-460.0,0.00019457,2]
[376022134,1753825845235,-435.60131649,0.00019458,2]
[376022135,1753825845245,-151.0,0.00019458,2]
[376022136,1753825845255,-460.0,0.00019458,2]
[376022137,1753825845264,-460.0,0.00019458,2]
[376022138,1753825845274,-460.0,0.00019458,2]
[376022139,1753825845284,-460.0,0.00019458,2]
[376022140,1753825845293,-460.0,0.00019458,2]
[376022141,1753825845303,-603.71,0.00019458,2]
[376022142,1753825845313,-460.0,0.00019458,2]
[376022143,1753825845323,-539.65,0.00019458,2]
[376022144,1753825845332,-554.02545611,0.00019458,2]
[376022145,1753825845341,-4419.34,0.00019458,2]
[376022146,1753825845350,-460.0,0.00019458,2]
[376022147,1753825845360,-460.0,0.00019458,2]
[376022148,1753825845369,-198.24,0.00019458,2]
[376022149,1753825845379,-460.0,0.00019458,2]
[376022150,1753825845388,-477.47,0.00019458,2]
[376022151,1753825845397,-796.57,0.00019458,2]
[376022152,1753825845406,-460.0,0.00019458,2]
[376022153,1753825845416,-460.0,0.00019458,2]
[376022154,1753825845425,-460.0,0.00019458,2]
[376022155,1753825845435,-460.0,0.00019458,2]
[376022156,1753825845444,-460.0,0.00019458,2]
[376022157,1753825845453,-151.0,0.00019458,2]
[376022158,1753825845463,-637.15,0.00019458,2]
[376022159,1753825845472,-460.0,0.00019458,2]
[376022160,1753825845482,-460.0,0.00019458,2]
[376022161,1753825845491,-460.0,0.00019458,2]
[376022162,1753825845501,-578.21,0.00019458,2]
[376022163,1753825845510,-505.36,0.00019458,2]
[376022164,1753825845520,-460.0,0.00019458,2]
[376022165,1753825845530,-460.0,0.00019458,2]
[376022166,1753825845541,-1636.02,0.00019458,2]
[376022167,1753825845551,-460.0,0.00019458,2]
[376022168,1753825845562,-460.0,0.00019458,2]
[376022169,1753825845571,-486.55,0.00019458,2]
[376022170,1753825845580,-460.0,0.00019458,2]
[376022171,1753825845590,-460.0,0.00019458,2]
[376022172,1753825845599,-460.0,0.00019458,2]
[376022173,1753825845609,-460.0,0.00019458,2]
[376022174,1753825845618,-305.85675955,0.00019458,2]
[376022175,1753825845628,-2062.8575975,0.00019458,2]
[376022176,1753825845637,-2062.8575975,0.00019458,2]
[376022177,1753825845647,-2062.8575975,0.00019458,2]
[376022178,1753825845656,-2062.8575975,0.00019458,2]
[376022179,1753825845665,-2062.8575975,0.00019458,2]
[376022180,1753825845675,-2062.8575975,0.00019458,2]
[376022181,1753825845684,-2062.8575975,0.00019458,2]
[376022182,1753825845693,-2062.8575975,0.00019458,2]
[376022183,1753825845703,-2062.8575975,0.00019458,2]
[376022184,1753825845713,-2062.8575975,0.00019458,2]
[376022185,1753825845722,-2062.8575975,0.00019458,2]
[376022186,1753825845731,-2062.8575975,0.00019458,2]
[376022187,1753825845741,-2062.8575975,0.00019458,2]
[376022188,1753825845750,-2062.8575975,0.00019458,2]
[376022189,1753825845759,-2062.8575975,0.00019458,2]
[376022190,1753825845770,-2062.8575975,0.00019458,2]
[376022191,1753825845780,-460.0,0.00019458,2]
[376022192,1753825845789,-500.0,0.00019459,2]
[376022193,1753825845799,-920.0,0.00019459,2]
[376022194,1753825845809,-151.0,0.00019459,2]
[376022195,1753825845818,-151.0,0.00019459,2]
[376022196,1753825845827,-151.0,0.00019459,2]
[376022197,1753825845837,-500.0,0.00019459,2]
[376022198,1753825845847,-283.88172561,0.00019459,2]
[376022199,1753825845856,-460.0,0.00019459,2]
[376022200,1753825845865,-460.0,0.00019459,2]
[376022201,1753825845875,-460.0,0.00019459,2]
[376022202,1753825845884,-151.0,0.00019459,2]
[376022203,1753825845893,-460.0,0.00019459,2]
[376022205,1753825845903,-151.0,0.00019459,2]
[376022207,1753825845912,-460.0,0.00019459,2]
[376022209,1753825845921,-421.69660893,0.00019459,2]
[376022211,1753825845930,-460.0,0.00019459,2]
[376022212,1753825845940,-460.0,0.00019459,2]
[376022213,1753825845949,-560.51,0.00019459,2]
[376022214,1753825845959,-151.0,0.00019459,2]
[376022216,1753825845968,-460.0,0.00019459,2]
[376022218,1753825845977,-151.0,0.00019459,2]
[376022220,1753825845987,-460.0,0.00019459,2]
[376022222,1753825845996,-534.99,0.00019459,2]
[376022224,1753825846006,-432.68126252,0.00019459,2]
[376022226,1753825846015,-460.0,0.00019459,2]
[376022228,1753825846025,-151.0,0.00019459,2]
[376022231,1753825846035,-460.0,0.00019459,2]
[376022232,1753825846044,-460.0,0.00019459,2]
[376022234,1753825846054,-460.0,0.00019459,2]
[376022237,1753825846064,-151.0,0.00019459,2]
[376022239,1753825846073,-151.0,0.00019459,2]
[376022241,1753825846083,-460.0,0.00019459,2]
[376022242,1753825846092,-460.0,0.00019459,2]
[376022245,1753825846102,-1691.88,0.00019459,2]
[376022246,1753825846111,-684.41,0.00019459,2]
[376022248,1753825846120,-1178.35,0.00019459,2]
[376022251,1753825846130,-460.0,0.00019459,2]
[376022253,1753825846139,-460.0,0.00019459,2]
[376022254,1753825846148,-173.90913974,0.00019459,2]
[376022257,1753825846158,-563.13,0.00019459,2]
[376022259,1753825846167,-460.0,0.00019459,2]
[376022260,1753825846178,-460.0,0.00019459,2]
[376022262,1753825846187,-460.0,0.00019459,2]
[376022264,1753825846196,-808.78,0.00019459,2]
[376022266,1753825846206,-1224.66,0.0001946,2]
[376022268,1753825846216,-151.0,0.0001946,2]
[376022270,1753825846225,-460.0,0.0001946,2]
[376022272,1753825846235,-216.631414,0.0001946,2]
[376022274,1753825846244,-460.0,0.0001946,2]
[376022276,1753825846254,-460.0,0.0001946,2]
[376022278,1753825846264,-151.0,0.0001946,2]
[376022280,1753825846273,-313.81819816,0.0001946,2]
[376022282,1753825846283,-151.0,0.0001946,2]
[376022284,1753825846293,-151.0,0.0001946,2]
[376022286,1753825846302,-151.0,0.0001946,2]
[376022288,1753825846311,-343.63826,0.0001946,2]
[376022290,1753825846321,-343.63826,0.0001946,2]
[376022292,1753825846331,-169.756681,0.0001946,2]
[376022294,1753825846340,-169.756681,0.0001946,2]
[376022296,1753825846349,-460.0,0.0001946,2]
[376022298,1753825846358,-4927.21,0.0001946,2]
[376022300,1753825846368,-151.0,0.0001946,2]
[376022302,1753825846376,-1238.68,0.0001946,2]
[376022304,1753825846386,-462.87115,0.00019461,2]
[376022306,1753825846395,-462.87115,0.00019461,2]
[376022308,1753825846404,-151.0,0.00019461,2]
[376022310,1753825846413,-151.0,0.00019461,2]
[376022312,1753825846422,-460.0,0.00019461,2]
[376022314,1753825846431,-1755.58,0.00019461,2]
[376022316,1753825846441,-460.0,0.00019461,2]
[376022318,1753825846450,-1139.3,0.00019461,2]
[376022320,1753825846459,-1158.23,0.00019461,2]
[376022322,1753825846468,-500.0,0.00019473,2]
[376022324,1753825846478,-500.90390723,0.00019473,2]
[376022326,1753825846487,-500.0,0.00019473,2]
[376022328,1753825846497,-500.0,0.00019473,2]
[376022330,1753825846506,-500.0,0.00019473,2]
[376022332,1753825846516,-500.0,0.00019473,2]
[376022334,1753825846525,-502.26318009,0.00019473,2]
[376022336,1753825846534,-500.0,0.00019473,2]
[376022338,1753825846543,-500.0,0.00019473,2]
[376022340,1753825846552,-500.0,0.00019473,2]
[376022342,1753825846561,-500.0,0.00019473,2]
[376022344,1753825846570,-500.0,0.00019473,2]
[376022346,1753825846579,-500.0,0.00019473,2]
[376022348,1753825846588,-500.0,0.00019473,2]
[376022350,1753825846598,-500.0,0.00019473,2]
[376022352,1753825846607,-500.42450837,0.00019473,2]
[376022354,1753825846616,-500.0,0.00019473,2]
[376022356,1753825846626,-501.84989015,0.00019473,2]
[376022358,1753825846636,-320.22870358,0.00019473,2]
[376022360,1753825846646,-459.18924753,0.00019473,2]
[376022362,1753825846655,-500.0,0.00019473,2]
[376022364,1753825846664,-159.75778681,0.00019473,2]
[376022366,1753825846674,-500.0,0.00019473,2]
[376022367,1753825846683,-500.0,0.00019473,2]
[376022368,1753825846693,-501.06154239,0.00019473,2]
[376022370,1753825846702,-501.17402821,0.00019521,2]
[376022372,1753825846712,-1000.0,0.00019521,2]
[376022374,1753825846721,-1000.98008625,0.00019521,2]
[376022376,1753825846731,-500.0,0.00019521,2]
[376022378,1753825846740,-1000.0,0.00019521,2]
[376022380,1753825846749,-1000.0,0.00019521,2]
[376022382,1753825846759,-1000.0,0.00019521,2]
[376022384,1753825846769,-840.1484376,0.00019521,2]
[376022386,1753825846779,-728.35028228,0.00019521,2]
[376022387,1753825846788,-151.0,0.00019561,2]
[376022388,1753825846798,-600.0,0.00019712,2]
[376022389,1753825846808,-460.0,0.00019713,2]
[376022390,1753825846819,-460.0,0.00019721,2]
[376022392,1753825846828,-460.0,0.00019721,2]
[376022394,1753825846838,-460.0,0.00019721,2]
[376022396,1753825846849,-1633.55,0.00019721,2]
[376022398,1753825846859,-2492.59,0.0001973,2]
[376022400,1753825846868,-460.0,0.0001973,2]
[376022402,1753825846878,-2035.69,0.0001973,2]
[376022404,1753825846888,-499.32,0.0001973,2]
[376022406,1753825846897,-460.0,0.0001973,2]
[376022408,1753825846906,-1213.51,0.0001973,2]
[376022410,1753825846916,-460.0,0.0001973,2]
[376022412,1753825846925,-460.0,0.0001973,2]
[376022414,1753825846934,-460.0,0.0001973,2]
[376022416,1753825846943,-333.15,0.0001973,2]
[376022418,1753825846953,-460.0,0.0001973,2]
[376022420,1753825846962,-624.94,0.0001973,2]
[376022422,1753825846972,-460.0,0.00019731,2]
[376022424,1753825846981,-558.73,0.00019731,2]
[376022426,1753825846991,-151.0,0.00019732,2]
[376022428,1753825847000,-460.0,0.00019732,2]
[376022430,1753825847009,-460.0,0.00019732,2]
[376022432,1753825847018,-460.0,0.00019732,2]
[376022434,1753825847028,-460.0,0.00019732,2]
[376022436,1753825847037,-460.0,0.00019732,2]
[376022438,1753825847046,-343.63826,0.00019732,2]
[376022440,1753825847055,-343.63826,0.00019732,2]
[376022442,1753825847065,-4419.34,0.00019732,2]
[376022444,1753825847075,-460.0,0.00019732,2]
[376022446,1753825847085,-460.0,0.00019732,2]
[376022448,1753825847094,-460.0,0.00019732,2]
[376022462,1753825847215,-477.47,0.00019732,2]
[376022464,1753825847226,-796.57,0.00019732,2]
[376022466,1753825847236,-460.0,0.00019732,2]
[376022468,1753825847245,-460.0,0.00019732,2]
[376022470,1753825847255,-460.0,0.00019732,2]
[376022472,1753825847264,-637.15,0.00019732,2]
[376022474,1753825847273,-208.310912,0.00019732,2]
[376022476,1753825847283,-460.0,0.00019732,2]
[376022478,1753825847292,-460.0,0.00019732,2]
[376022479,1753825847302,-460.0,0.00019732,2]
[376022480,1753825847311,-578.21,0.00019732,2]
[376022481,1753825847321,-426.30299753,0.00019732,2]
[376022482,1753825847330,-460.0,0.00019732,2]
[376022483,1753825847339,-1636.02,0.00019732,2]
[376022484,1753825847349,-460.0,0.00019732,2]
[376022485,1753825847358,-460.0,0.00019732,2]
[376022486,1753825847368,-486.55,0.00019732,2]
[376022487,1753825847378,-460.0,0.00019732,2]
[376022488,1753825847387,-460.0,0.00019732,2]
[376022489,1753825847396,-460.0,0.00019732,2]
[376022490,1753825847405,-460.0,0.00019732,2]
[376022491,1753825847414,-460.0,0.00019732,2]
[376022492,1753825847424,-565.21776314,0.00019733,2]
[376022493,1753825847433,-920.0,0.00019733,2]
[376022495,1753825847442,-151.0,0.00019733,2]
[376022497,1753825847451,-151.0,0.00019733,2]
[376022499,1753825847461,-151.0,0.00019733,2]
[376022501,1753825847471,-400.8168749,0.00019733,2]
[376022503,1753825847480,-460.0,0.00019733,2]
[376022505,1753825847489,-460.0,0.00019733,2]
[376022507,1753825847499,-196.602248,0.00019733,2]
[376022509,1753825847509,-202.307778,0.00019733,2]
[376022511,1753825847519,-460.0,0.00019733,2]
[376022513,1753825847528,-460.0,0.00019733,2]
[376022515,1753825847538,-560.51,0.00019733,2]
[376022517,1753825847548,-460.0,0.00019733,2]
[376022519,1753825847557,-151.0,0.00019733,2]
[376022521,1753825847566,-460.0,0.00019733,2]
[376022523,1753825847575,-534.99,0.00019733,2]
[376022525,1753825847585,-460.0,0.00019733,2]
[376022527,1753825847594,-460.0,0.00019733,2]
[376022529,1753825847604,-481.08,0.00019733,2]
[376022531,1753825847613,-151.0,0.00019733,2]
[376022533,1753825847622,-169.756681,0.00019733,2]
[376022535,1753825847632,-169.756681,0.00019733,2]
[376022537,1753825847641,-460.0,0.00019733,2]
[376022539,1753825847651,-1691.88,0.00019733,2]
[376022541,1753825847660,-684.41,0.00019733,2]
[376022543,1753825847669,-1178.35,0.00019733,2]
[376022545,1753825847678,-460.0,0.00019733,2]
[376022547,1753825847687,-460.0,0.00019733,2]
[376022549,1753825847698,-563.13,0.00019733,2]
[376022551,1753825847708,-460.0,0.00019733,2]
[376022553,1753825847718,-460.0,0.00019733,2]
[376022555,1753825847727,-808.78,0.00019733,2]
[376022557,1753825847737,-1224.66,0.00019734,2]
[376022559,1753825847746,-460.0,0.00019734,2]
[376022561,1753825847756,-462.87115,0.00019734,2]
[376022563,1753825847765,-462.87115,0.00019734,2]
[376022565,1753825847778,-151.0,0.00019734,2]
[376022567,1753825847787,-151.0,0.00019734,2]
[376022569,1753825847797,-460.0,0.00019734,2]
[376022571,1753825847806,-4927.21,0.00019734,2]
[376022573,1753825847817,-1238.68,0.00019734,2]
[376022575,1753825847826,-208.686911,0.00019735,2]
[376022577,1753825847836,-151.0,0.00019735,2]
[376022579,1753825847845,-151.0,0.00019735,2]
[376022581,1753825847854,-151.0,0.00019735,2]
[376022583,1753825847864,-343.63826,0.00019735,2]
[376022585,1753825847874,-343.63826,0.00019735,2]
[376022586,1753825847883,-169.756681,0.00019735,2]
[376022588,1753825847893,-169.756681,0.00019735,2]
[376022590,1753825847902,-1755.58,0.00019735,2]
[376022593,1753825847912,-460.0,0.00019735,2]
[376022595,1753825847921,-1139.3,0.00019735,2]